Cogmind - Beta 16.1 @@@ ROGUE MODE // 2026.03.30 @ 13:07:49 Player: RHAHI Result: Destroyed by D-53 Grenadier with Mini Grenade Launcher Performance ------------- Evolutions (0) 0 Regions Visited (2) 400 Robots Destroyed (38) 190 Value Destroyed (791) 791 Prototype IDs (1) 20 Alien Tech Used (0) 0 Bonus (0) 0 TOTAL SCORE: 1401 Bonus ------- None Cogmind --------- Core Integrity 0/250 Matter 293/300 Energy 250/250 System Corruption 0% Temperature Cool (0) Movement Walking (260) Ox2 Location -10/Mines Parts ------- > --- POWER (1) -------- Ion Engine > --- PROPULSION (2) --- Aluminum Leg Aluminum Leg > --- UTILITY (2) ------ High-capacity Storage Unit Seismic Detector > --- WEAPON (2) ------- Light Assault Rifle Light Assault Rifle > --- INVENTORY (20) --- Ion Engine Ion Engine Aluminum Leg Aluminum Leg Improved Heat Sink Medium Storage Unit Structural Scanner Experimental Sensor Array Signal Interpreter Improved Terrain Scanner Seismic Detector Light Armor Plating Hacking Suite Tractor Beam Light Assault Rifle Light Assault Rifle Light Cannon Bore Cannon Datajack Mining Laser Peak State ------------ > --- POWER ------------ Ion Engine > --- PROPULSION ------- Aluminum Leg Aluminum Leg > --- UTILITY ---------- High-capacity Storage Unit Experimental Sensor Array > --- WEAPON ----------- Light Assault Rifle Mining Laser > --- INVENTORY -------- Ion Engine Ion Engine Light Treads Aluminum Leg Flight Unit Flight Unit Improved Heat Sink Medium Storage Unit High-capacity Storage Unit Structural Scanner Sensor Array Improved Terrain Scanner Seismic Detector Seismic Detector Hacking Suite Tractor Beam Light Assault Rifle Light Assault Rifle Light Cannon Datajack [Rating: 17] Favorites ----------- Power Ion Engine Engine Ion Engine Propulsion Light Treads Treads Light Treads Leg Aluminum Leg Utility High-capacity Storage Unit Device Seismic Detector Storage High-capacity Storage Unit Weapon Light Assault Rifle Ballistic Gun Light Assault Rifle Special Weapon Mining Laser Special Melee Weapon Datajack Build | -11 -10 -10 ------- Run | Yrd Mat Min Slots Evolved . | . . . Power . | . . . Propulsion . | . . . Utility . | . . . Weapon . | . . . Parts Attached 26 | 4 19 3 Power 5 | . 5 . Engine 5 | . 5 . Core . | . . . Reactor . | . . . Propulsion 6 | 2 4 . Treads 3 | 2 1 . Leg 3 | . 3 . Wheel . | . . . Hover . | . . . Flight . | . . . Utility 6 | . 4 2 Device 4 | . 3 1 Storage 2 | . 1 1 Processor . | . . . Hackware . | . . . Protection . | . . . Artifact . | . . . Weapon 9 | 2 6 1 Energy Gun . | . . . Energy Cannon . | . . . Ballistic Gun 6 | 2 3 1 Ballistic Cannon . | . . . Launcher . | . . . Special Weapon 2 | . 2 . Impact Weapon . | . . . Slashing Weapon . | . . . Piercing Weapon . | . . . Special Melee Weapon 1 | . 1 . Unidentified Prototypes 1 | . . 1 Parts Lost 6 | . 5 1 Power 2 | . 2 . Propulsion 2 | . 2 . Utility 1 | . . 1 Weapon 1 | . 1 . Highest Loss Streak 3 | . 3 1 To Critical Strikes . | . . . Average Backups 15 | 1 15 19 Power . | . . 2 Propulsion 3 | . 3 3 Utility 6 | . 5 9 Weapon 4 | . 4 3 Tool/Special . | . . . Unused Backups 24 | . 6 18 Power 5 | . 2 3 Propulsion 8 | . 4 4 Utility 9 | . . 9 Weapon 2 | . . 2 Tool/Special . | . . . Average Slot Usage (%) 98 | . 98 100 Engine 13 | . 13 14 Treads 21 | . 24 . Leg 6 | . 3 28 Device 13 | . 12 14 Storage 13 | . 13 14 Ballistic Gun 24 | . 24 25 Special Weapon 1 | . 1 2 Special Melee Weapon 1 | . 2 . Peak Build Rating 17 | 4 10 17 Average Rating 8 | 3 8 11 On Entrance 4 | . 4 9 Avg Prop Armor Cover (%) 27 | 27 26 . Naked Turns . | . . . Heaviest Build 49 | 3 49 48 Greatest Support 40 | 3 40 20 Greatest Overweight (x) 4 | . 4 2 Average Overweight (x) 1 | . 1 2 Largest Inventory Capacity 20 | 5 20 20 Average Capacity 19 | 5 19 20 Most Carried 20 | 5 20 20 Average Carried 15 | 1 15 19 Final Capacity 20 | 5 20 20 Final Carried 20 | 5 20 20 Class Distribution -------------------- 90% | Mutant 9% | Scavenger-Mutant Dominant Class ---------------- Mutant | -10/Materials Scavenger-Mutant | -10/Mines Resources | -11 -10 -10 ----------- Run | Yrd Mat Min Matter Collected 855 | 276 502 77 Remotely . | . . . Salvage Created 1194 | 166 920 108 Parts 74 | 11 57 6 Haulers Intercepted 2 | . 2 . Recyclers Shooed 1 | . 1 . Parts Field Recycled . | . . . Retrieved Matter . | . . . Parts Self-Destructed . | . . . Prevented . | . . . Parts Restored . | . . . Kills | -11 -10 -10 ------- Run | Yrd Mat Min Combat Hostiles Destroyed 27 | . 24 3 Guns 27 | . 24 3 Classes Destroyed 7 | 2 5 . Tunneler 3 | 3 . . Hauler 2 | . 2 . Recycler 2 | 1 . 1 Operator 2 | . 2 . Watcher 2 | . 2 . Swarmer 11 | . 8 3 Grunt 16 | . 16 . Best Kill Streak 4 | 2 3 4 Combat Bots Only 3 | . 3 3 Max Kills in Single Turn 1 | 1 1 1 Gunslinging . | . . . Exploded . | . . . Melee . | . . . Uniques/NPCs Destroyed . | . . . Combat | -11 -10 -10 -------- Run | Yrd Mat Min Hostile Shots Fired 152 | . 126 26 Missed 40 | . 34 6 Hits 112 | . 92 20 Projectile 112 | . 92 20 AOE 2 | . . 2 Critical Strikes 2 | . 1 1 Damage Taken 1246 | . 995 251 Core 254 | . 142 112 Absorbed by Shields . | . . . Core Remaining (%) 100 | 100 . . Volleys Fired 134 | 9 113 12 Largest 2 | 2 2 1 Hottest 100 | 40 100 20 Shots Fired 235 | 18 205 12 Gun 228 | 18 198 12 Cannon . | . . . Launcher . | . . . Special 7 | . 7 . Kinetic 228 | 18 198 12 Thermal 7 | . 7 . Explosive . | . . . Electromagnetic . | . . . Robot Hit Streak 18 | 8 18 15 Robot Miss Streak 5 | 1 5 3 Penetration Max . | . . . Secondary Targets 4 | . 4 . Max Gunslinging Chain 1 | . 1 . Shots Hit Robots 155 | 13 133 9 Core Hits 73 | 6 61 6 Critical Kills . | . . . Critical Parts Destroyed 2 | . 2 . Critical Strikes 2 | . 2 . Destroy 2 | . 2 . Melee Attacks . | . . . Impact . | . . . Slashing . | . . . Piercing . | . . . Sneak Attacks . | . . . Combat Hostiles . | . . . Follow-up Attacks . | . . . Damage Inflicted 1485 | 136 1259 90 Guns 1478 | 136 1254 88 Cannons . | . . . Explosions . | . . . Melee . | . . . Ramming 7 | . 5 2 Kinetic 1478 | 136 1254 88 Thermal . | . . . Explosive . | . . . Electromagnetic . | . . . Impact . | . . . Slashing . | . . . Piercing . | . . . Highest Corruption . | . . . Average Corruption . | . . . Corruption Purged . | . . . Corruption Blocked . | . . . Overload Shots . | . . . Overflow Damage . | . . . Projectiles . | . . . Explosions . | . . . Melee . | . . . Knockbacks . | . . . Impact . | . . . Kinetic . | . . . Secondary . | . . . Self-Inflicted Damage . | . . . Shots . | . . . Rammed 1 | . 1 . Targets Rammed 3 | . 2 1 Kicked 2 | . 1 1 Crushed . | . . . Highest Temperature 40 | . 40 . Average Temperature 12 | . 12 . Received Heat Transfer 423 | . 423 . Siege Activations . | . . . Martial Activations . | . . . Shielding Activations . | . . . Robots Disrupted . | . . . Combat Hostiles . | . . . Robots Corrupted . | . . . Combat Hostiles . | . . . Parts Fried . | . . . Impact Corruptions . | . . . Robots Melted . | . . . Combat Hostiles . | . . . Parts Melted . | . . . Heat Transferred . | . . . Parts Sabotaged . | . . . Parts Stolen . | . . . Parts Stripped . | . . . Power Chain Reactions . | . . . Alert | -11 -10 -10 ------- Run | Yrd Mat Min Maximum Alert Level 1 | . 1 . Low Security (%) 87 | 100 85 100 Level 1 12 | . 14 . Level 2 . | . . . Level 3 . | . . . Level 4 . | . . . Level 5 . | . . . High Security . | . . . Max Security . | . . . Peak Influence 327 | 10 327 148 Initial 123 | . . 123 Average 105 | 2 111 80 Influence Increases 879 | 20 784 75 Destroy 0b10 Robot/C 540 | . 480 60 Destroy 0b10 Robot/NC 55 | 20 30 5 Destroy Leader 128 | . 118 10 Successful Hack 15 | . 15 . Select Force Hacks 60 | . 60 . Disable Machine 15 | . 15 . Destroy Structure 6 | . 6 . Lose Combat Pursuer 60 | . 60 . Influence Decreases 879 | 20 468 391 Entered New Map 193 | . . 193 Time Decay 626 | 20 418 188 Lost Part 60 | . 50 10 Squads Dispatched 8 | . 8 . Investigation 6 | . 6 . Extermination . | . . . Reinforcement 2 | . 2 . Assault . | . . . Garrison . | . . . Intercept . | . . . Searches Triggered . | . . . Construction Impeded . | . . . Haulers Reinforced . | . . . Active Scanning Responses . | . . . Cargo Convoy Interrupts . | . . . Stealth | -11 -10 -10 --------- Run | Yrd Mat Min Distress Signals 2 | . 2 . Communications Jammed . | . . . Distress Signals . | . . . Times Spotted 48 | . 43 5 Peak Tracking Total 4 | . 4 3 Tactical Retreats 3 | . 3 . Traps | -11 -10 -10 ------- Run | Yrd Mat Min Traps Triggered 3 | . 3 . Indirectly . | . . . Trap Hack Attempts 55 | . 55 . Triggered 1 | . 1 . Disarmed 1 | . 1 . Reprogrammed . | . . . Reused . | . . . Traps Extracted . | . . . Installed . | . . . Triggered . | . . . Machines | -11 -10 -10 ---------- Run | Yrd Mat Min Machines Disabled 1 | . 1 . Max in Single Turn 1 | . 1 . Machines Repaired . | . . . Machines Dismantled . | . . . Machines Sabotaged . | . . . Overloaded Fab Kills . | . . . Hacking | -11 -10 -10 --------- Run | Yrd Mat Min Machines Accessed 8 | . 8 . Terminals 6 | . 6 . Fabricators . | . . . Repair Stations . | . . . Recycling Units 2 | . 2 . Scanalyzers . | . . . Garrison Access . | . . . Total Hacks 20 | . 20 . Successful 10 | . 10 . Failed 9 | . 9 . Catastrophic . | . . . Database Lockouts 1 | . 1 . Manual 20 | . 20 . Terminals 18 | . 18 . Fabricators . | . . . Repair Stations . | . . . Recycling Units 2 | . 2 . Scanalyzers . | . . . Garrison Access . | . . . Terminal Hacks 2 | . 2 . Record 1 | . 1 . Robot Schematic 1 | . 1 . Fabricator Hacks . | . . . Repair Station Hacks . | . . . Recycling Unit Hacks . | . . . Scanalyzer . | . . . Garrison Access Hacks . | . . . Unauthorized Hacks 8 | . 8 . Terminals 6 | . 6 . Botnet 1 | . 1 . Skim 5 | . 5 . Fabricators . | . . . Repair Stations . | . . . Recycling Units 2 | . 2 . Tunnel 2 | . 2 . Scanalyzers . | . . . Garrison Access . | . . . Data Cores Recovered . | . . . Used . | . . . Hacking Detections 5 | . 5 . Full Trace Events . | . . . Feedback Events . | . . . Feedback Blocked . | . . . Robot Schematics Acquired 1 | . 1 . Robots Built . | . . . Authchips . | . . . Time . | . . . Total Robot Build Rating . | . . . Part Schematics Acquired . | . . . Parts Built . | . . . Authchips . | . . . Time . | . . . Total Part Build Rating . | . . . Part Studies Acquired . | . . . Parts Repaired . | . . . Time . | . . . Parts Recycled . | . . . Recycled Matter . | . . . Retrieved Matter . | . . . Retrieved Components . | . . . Parts Scanalyzed . | . . . Part Schematics Acquired . | . . . Parts Damaged . | . . . Bothacking | -11 -10 -10 ------------ Run | Yrd Mat Min Used RIF Installer . | . . . Robots Hacked . | . . . Non-combat . | . . . Combat . | . . . Robot Hacks Applied . | . . . Relay Couplers Released . | . . . Fabnet Peak Effective % . | . . . Robots Rewired . | . . . Allies Hacked . | . . . Hacks Repelled . | . . . Allies | -11 -10 -10 -------- Run | Yrd Mat Min Total Allies . | . . . Largest Group . | . . . Highest-Rated Group . | . . . Highest-Rated Ally . | . . . Total Orders . | . . . Ally Attacks . | . . . Total Damage . | . . . Kills . | . . . Allies Corrupted . | . . . Allies Melted . | . . . Intel | -11 -10 -10 ------- Run | Yrd Mat Min Active Infowar (turns) 3245 | . 2851 394 Sensors 1 | . . 1 Terrain 590 | . 271 319 Seismic 2654 | . 2580 74 Robot Analysis Total . | . . . Derelict Logs Recovered . | . . . Drone Launches . | . . . Drone Recoveries . | . . . Exploration | -11 -10 -10 ------------- Run | Yrd Mat Min Turns Passed 3557 | 87 3075 395 Spaces Moved 1148 | 101 912 135 Core 109 | 101 8 . Treads 774 | . 774 . Legs 265 | . 130 135 Wheels . | . . . Hover . | . . . Flight . | . . . Fastest Speed 50 | 50 50 260 Average Speed 226 | 50 241 260 Slowest Speed 400 | 50 400 260 Overloaded Moves . | . . . Propulsion Burnouts . | . . . Robots Hopped . | . . . Potential Cave-ins . | . . . Cave-ins Triggered . | . . . Exploration Rate (%) 45 | 4 99 34 Regions Visited 2 Branch Regions 1 Pre-discovered Areas 4 | . 4 . Known Exits Taken . | . . . Unknown Exits Taken 2 | 1 1 . Scrap Searched 1 | . . 1 Spaces Dug 5 | . 5 . Terrain Destroyed 5 | . 5 . Melee . | . . . Projectile 5 | . 5 . AOE . | . . . Terrain Rammed . | . . . Walls Destroyed . | . . . Machines Disabled . | . . . Actions | -11 -10 -10 --------- Run | Yrd Mat Min Total 1880 | 119 1592 169 Wait 442 | . 442 . Move 1146 | 100 911 135 Hop . | . . . Pick Up 45 | 6 31 8 Fast Attach 6 | 3 3 . Attach 7 | 1 5 1 Detach . | . . . Swap 21 | . 16 5 Drop 21 | . 14 7 Fire 134 | 9 113 12 Melee . | . . . Ram . | . . . Kick 2 | . 1 1 Crush 1 | . 1 . Escape Stasis . | . . . Rewire . | . . . Trap 55 | . 55 . Miscellaneous . | . . . Route ------- -11/Scrapyard -10/Materials (discovered 5 exits: *Mat x3 / [*Min] / [*Sub]) -10/Mines (discovered 1 exit: *Mat) History --------- Turn | Location | Event 13 | -11/Scrapyard | Discovered new exit (range 16) 88 | -11/Scrapyard | Entered Materials 311 | -10/Materials | Build established: Mutant 997 | -10/Materials | Discovered new exit (range 6) 1242 | -10/Materials | Discovered new exit (range 12) 1510 | -10/Materials | Discovered new exit (range 5) 1742 | -10/Materials | Lost 3 parts (1p1n1w) 1846 | -10/Materials | Discovered new exit (range 15) 2312 | -10/Materials | Learned location of 1 exit from Storage 2312 | -10/Materials | Central database locked down 2380 | -10/Materials | Identified exit to Materials 2530 | -10/Materials | Learned 2 Storage zone layouts 2560 | -10/Materials | Learned location of Mines (-10) 2747 | -10/Materials | Core integrity fell below 50% 3163 | -10/Materials | Entered Mines 3210 | -10/Mines | Found a damaged Exp. Sensor Array with a note attached 3216 | -10/Mines | Found Prototype Device 3217 | -10/Mines | Identified Exp. Sensor Array 3330 | -10/Mines | Discovered exit to Materials (range 16) 3365 | -10/Mines | Found DCF Scrap (11 items) 3519 | -10/Mines | A weapon hastily lodged in a ceiling crevice suddenly fell to the ground 3522 | -10/Mines | Build established: Scavenger-Mutant 3545 | -10/Mines | Assembled infested the area 3558 | -10/Mines | Destroyed by D-53 Grenadier with Mini Grenade Launcher Last Messages --------------- 03386_ Dropped Flight Unit. 03387_ Acquired Ion Engine. 03388_ Acquired 10 matter. 03393_ Acquired Lgt. Assault Rifle. 03471_ K-01 Serf collects debris. 03519_ A Bore Cannon has been hastily shoved under some rubble with a note attached: "Boring, it is not. Although I admit enemies do get bored, for sure." 03524_ Dropped Ion Engine. 03525_ Acquired Bore Cannon. 03532_ K-01 Serf collects debris. 03545_ ALERT: Infestation in the mines, dispatching Demolisher response squad. 03548_ Kicked T-07 Excavator. 03552_ K-01 Serf collects debris. 03558_ C-45 Heavy ARC bursts open, deploying its payload. 03558_ D-53 Grenadier unfolds itself. 03558_ K-01 Serf destroyed. Map ----- +----------------------------------------------------+ | | | | | | | | | ??????????????????????????????#??????????????????? | | ?????????????????????????####????????????????????? | | ????????????????????????## #####???#?#??????????? | | ????????????????#???#???# ##????????#???????? | | ????????????????????#???# ##???????#??#????? | | ????????????????#?#?????## ## #####??#????????? | | ??????????????????????#??###### #????????????? | | ????????????????????????#?????##